Cogmind - Beta 12 *** ADVENTURER MODE // 2023.09.10 @ 06:21:50 Player: Auto Result: Core destroyed Performance ------------- Evolutions (3) 1500 Regions Visited (9) 1800 Robots Destroyed (188) 940 Value Destroyed (9932) 9932 Prototype IDs (34) 680 Alien Tech Used (0) 0 Bonus (4259) 4259 TOTAL SCORE: 19111 Bonus ------- High Alert Combat Kills 898 Follower Combat Kills 1161 Entered Garrisons 400 Used RIF Installer 1500 Aligned with FarCom 300 Cogmind --------- Core Integrity 0/700 Matter 183/300 Energy 471/480 System Corruption 2% Temperature Critical (555) Movement Walking (190) Ox1 Location -7/Factory Parts ------- > --- POWER (2) -------- Improved Deuterium Engine Improved Deuterium Engine > --- PROPULSION (4) --- Carbon-fiber Leg Carbon-fiber Leg Carbon-fiber Leg > --- UTILITY (3) ------ Medium Storage Unit Graphene Brace System Shield > --- WEAPON (4) ------- Heavy Laser Heavy Machine Gun Mass Driver Rocket Launcher > --- INVENTORY (10) --- Improved Deuterium Engine Improved Deuterium Engine Micro Nuclear Core Improved Heat Sink Improved Field Recycling Unit (0) Particle Gun Mass Driver Mass Driver Heavy Mace Peak State ------------ > --- POWER ------------ Heavy Ion Engine Light Deuterium Engine > --- PROPULSION ------- Flying Fortress v7 > --- UTILITY ---------- Small Storage Unit Relay Coupler [Behemoth] > --- WEAPON ----------- Cooled Particle Cannon Cooled Particle Cannon Heavy Plasma Cannon > --- INVENTORY -------- Improved Cooling System Improved Cooling System Experimental Sensor Array Hardened Medium Armor Plating Relay Coupler [Sentry] Heavy Particle Cannon Gauss Rifle Remote Datajack [Rating: 63] Favorites ----------- Power Micro Nuclear Core Engine Improved Deuterium Engine Power Core Micro Nuclear Core Propulsion Aluminum Leg Leg Aluminum Leg Hover Unit Gravmag System Flight Unit Flying Fortress v7 Utility Small Storage Unit Device Improved Cooling System Storage Small Storage Unit Hackware Relay Coupler [Grunt] Protection Medium Reactive Plating Weapon Cooled Particle Cannon Energy Gun Particle Gun Energy Cannon Cooled Particle Cannon Ballistic Gun Gauss Rifle Ballistic Cannon Mass Driver Launcher Rocket Launcher Special Weapon Improved Remote Datajack Impact Weapon Heavy Mace Build | -11 -10 -10 -10 -9 -8 -8 -8 -8 -7 ------- Run | Jun Mat Min Exi Min Mat Gar Mat Gar Fac Slots Evolved 6 | . . . . . 4 . . . 2 Power 1 | . . . . . 1 . . . . Propulsion 2 | . . . . . 2 . . . . Utility 1 | . . . . . . . . . 1 Weapon 2 | . . . . . 1 . . . 1 Parts Attached 216 | 6 16 11 . 1 18 29 23 36 76 Power 29 | 1 3 1 . 1 6 3 3 4 7 Engine 19 | 1 3 1 . 1 5 . 3 . 5 Core 10 | . . . . . 1 3 . 4 2 Reactor . | . . . . . . . . . . Propulsion 66 | 2 7 3 . . 1 8 12 12 21 Treads . | . . . . . . . . . . Leg 61 | 2 7 3 . . . 4 12 12 21 Wheel . | . . . . . . . . . . Hover 4 | . . . . . . 4 . . . Flight 1 | . . . . . 1 . . . . Utility 42 | 1 2 3 . . 3 6 3 4 20 Device 22 | . 2 3 . . 2 2 1 1 11 Storage 6 | 1 . . . . 1 . . . 4 Processor . | . . . . . . . . . . Hackware 13 | . . . . . . 4 2 3 4 Protection 1 | . . . . . . . . . 1 Artifact . | . . . . . . . . . . Weapon 79 | 2 4 4 . . 8 12 5 16 28 Energy Gun 22 | 2 3 2 . . 2 . 2 5 6 Energy Cannon 19 | . 1 2 . . 6 6 . 4 . Ballistic Gun 14 | . . . . . . 2 2 . 10 Ballistic Cannon 7 | . . . . . . . . 1 6 Launcher 1 | . . . . . . . . . 1 Special Weapon 15 | . . . . . . 4 1 6 4 Impact Weapon 1 | . . . . . . . . . 1 Slashing Weapon . | . . . . . . . . . . Piercing Weapon . | . . . . . . . . . . Special Melee Weapon . | . . . . . . . . . . Unidentified Prototypes 5 | . . 1 . . 2 . 1 . 1 Parts Lost 16 | . . . . . . . . 2 14 Power 1 | . . . . . . . . 1 . Propulsion 5 | . . . . . . . . 1 4 Utility 3 | . . . . . . . . . 3 Weapon 7 | . . . . . . . . . 7 Highest Loss Streak 4 | . . . . . . . . 2 4 To Critical Strikes . | . . . . . . . . . . Average Slot Usage (%) 93 | . 96 100 100 100 72 85 100 98 98 Engine 10 | . 13 14 14 14 16 9 5 8 7 Core 5 | . . . . . 1 8 12 9 6 Leg 23 | . 27 28 28 28 . 2 36 36 29 Hover 1 | . . . . . . 15 . . . Flight 1 | . . . . . 9 4 . . . Device 7 | . 11 14 14 14 9 4 7 1 7 Storage 9 | . 14 14 14 14 9 9 9 9 5 Hackware 3 | . . . . . . 3 1 5 6 Energy Gun 7 | . 22 13 14 14 5 . 1 7 7 Energy Cannon 13 | . 5 14 14 14 21 23 18 13 1 Ballistic Gun 3 | . . . . . . 1 5 . 9 Ballistic Cannon 1 | . . . . . . . . . 5 Special Weapon 1 | . . . . . . 1 1 6 1 Naked Turns . | . . . . . . . . . . Heaviest Build 87 | 13 17 18 17 19 40 43 42 44 87 Greatest Support 73 | 20 20 30 30 30 50 50 57 70 73 Greatest Overweight (x) 2 | . . . . . . 2 . . 2 Average Overweight (x) . | . . . . . . . . . . Largest Inventory Capacity 15 | 8 8 8 8 8 8 8 8 8 15 Average Capacity 8 | 7 8 8 8 8 8 8 8 8 11 Most Carried 15 | 6 8 8 8 8 8 8 8 8 15 Average Carried 8 | 4 7 7 7 7 7 7 6 7 10 Final Capacity 10 | 8 8 8 8 8 8 8 8 8 10 Final Carried 9 | 6 8 8 8 8 8 8 8 8 9 Class Distribution -------------------- 35% | Scavenger-Mutant 29% | Scavenger-Skirmisher 18% | Skirmisher 10% | Mutant Dominant Class ---------------- Mutant | -10/Materials Scavenger-Mutant | -10/Mines Scavenger-Mutant | -10/Exiles Scavenger-Mutant | -9/Mines Skirmisher | -8/Materials Skirmisher | -8/Garrison Scavenger-Skirmisher | -8/Materials Scavenger-Mutant | -8/Garrison Scavenger-Skirmisher | -7/Factory Resources | -11 -10 -10 -10 -9 -8 -8 -8 -8 -7 ----------- Run | Jun Mat Min Exi Min Mat Gar Mat Gar Fac Matter Collected 4028 | 260 160 110 . 10 225 313 452 522 1976 Remotely . | . . . . . . . . . . Salvage Created 7689 | 80 934 236 . 104 1147 817 1102 628 2641 Parts 365 | 1 49 11 . 5 61 43 41 34 120 Haulers Intercepted 2 | . 2 . . . . . . . . Recyclers Shooed 2 | . . . . . . . . . 2 Parts Field Recycled . | . . . . . . . . . . Retrieved Matter . | . . . . . . . . . . Parts Self-Destructed . | . . . . . . . . . . Prevented . | . . . . . . . . . . Kills | -11 -10 -10 -10 -9 -8 -8 -8 -8 -7 ------- Run | Jun Mat Min Exi Min Mat Gar Mat Gar Fac Combat Hostiles Destroyed 170 | . 21 11 . 2 23 20 23 14 56 Melee 1 | . . . . . . . . . 1 Guns 69 | . 17 5 . . 8 . 3 2 34 Cannons 89 | . 4 6 . 2 15 18 17 12 15 AOE 3 | . . . . . . . . . 3 Classes Destroyed 19 | 2 4 1 . 1 2 2 2 . 5 Worker 4 | . . . . . 1 . . . 3 Builder 3 | . . . . . . . . . 3 Tunneler 1 | 1 . . . . . . . . . Hauler 2 | . 2 . . . . . . . . Recycler 8 | 1 1 . . . . . 1 . 5 Mechanic 1 | . . . . . . . . . 1 Watcher 8 | . 3 . . . 4 . 1 . . Swarmer 26 | . 6 3 . . 4 6 3 1 3 Grunt 73 | . 15 2 . . 12 6 12 2 24 Brawler 3 | . . . . . . 1 1 . 1 Duelist 3 | . . . . . . . 1 . 2 Protector 1 | . . . . . . . . . 1 Sentry 23 | . . . . 2 6 4 3 3 5 Demolisher 2 | . . . . . . . 2 . . Specialist 2 | . . . . . . . . . 2 Hunter 7 | . . . . . 1 . 1 2 3 Programmer 22 | . . . . . . 3 . 6 13 Heavy 2 | . . . . . . . . . 2 Assembled 6 | . . 6 . . . . . . . Best Kill Streak 9 | 2 6 4 . 2 6 5 7 3 9 Combat Bots Only 7 | . 6 4 . 2 6 5 7 3 6 Max Kills in Single Turn 4 | 1 2 2 . 1 2 1 1 1 4 Gunslinging 1 | . 1 . . . . . . . . Exploded 2 | . . . . . . . . . 2 Melee 1 | . . . . . . . . . 1 Uniques/NPCs Destroyed . | . . . . . . . . . . Combat | -11 -10 -10 -10 -9 -8 -8 -8 -8 -7 -------- Run | Jun Mat Min Exi Min Mat Gar Mat Gar Fac Damage Taken 8065 | . 495 289 . 23 608 881 779 878 4112 Core 1309 | . 96 36 . . 37 61 174 199 706 Absorbed by Shields 136 | . . . . . . . . . 136 Regen/Repaired (Parts) 561 | . 148 . . . . . 98 . 315 Core Remaining (%) 53 | 100 . . . 47 . . . 14 . Volleys Fired 538 | 6 59 19 . 3 62 123 68 80 118 Largest 4 | 2 2 2 . 2 3 3 3 3 4 Hottest 275 | 90 125 125 . 125 194 150 176 240 275 Shots Fired 1226 | 12 118 38 . 6 184 217 162 127 362 Gun 488 | 12 98 16 . 3 53 . 43 31 232 Cannon 706 | . 20 22 . 3 131 204 116 92 118 Launcher 2 | . . . . . . . . . 2 Special 30 | . . . . . . 13 3 4 10 Kinetic 260 | . . . . . . . 39 . 221 Thermal 921 | 12 118 25 . 6 184 204 120 123 129 Explosive 2 | . . . . . . . . . 2 Electromagnetic 13 | . . 13 . . . . . . . Robot Hit Streak 38 | 11 28 16 . 7 38 27 19 27 27 Robot Miss Streak 4 | . 2 4 . . 2 1 2 2 4 Penetration Max 1 | . . . . . . . 1 . 1 Secondary Targets 4 | . 2 . . . . . . . 2 Max Gunslinging Chain 1 | . 1 . . . . . . . 1 Shots Hit Robots 784 | 11 97 26 . 6 113 101 95 61 274 Core Hits 378 | 3 42 19 . 3 44 27 34 21 185 Critical Kills 9 | . . . . . . 1 3 . 5 Critical Parts Destroyed 11 | . . . . . . . 1 . 10 Critical Strikes 30 | 1 4 1 . . . 1 4 . 19 Burn 9 | 1 4 1 . . . . . . 3 Meltdown 5 | . . . . . . 1 3 . 1 Destroy 13 | . . . . . . . 1 . 12 Blast 1 | . . . . . . . . . 1 Smash 2 | . . . . . . . . . 2 Melee Attacks 6 | . . . . . . . . . 6 Impact 6 | . . . . . . . . . 6 Slashing . | . . . . . . . . . . Piercing . | . . . . . . . . . . Sneak Attacks . | . . . . . . . . . . Combat Hostiles . | . . . . . . . . . . Follow-up Attacks . | . . . . . . . . . . Damage Inflicted 18119 | 132 1313 500 . 100 2443 2443 2538 1553 7097 Guns 7037 | 132 1052 200 . 49 718 . 432 494 3960 Cannons 10271 | . 260 300 . 51 1725 2443 2083 1059 2350 Explosions 525 | . . . . . . . . . 525 Melee 262 | . . . . . . . . . 262 Ramming 24 | . 1 . . . . . 23 . . Kinetic 4574 | . . . . . . . 373 . 4201 Thermal 12582 | 132 1312 289 . 100 2443 2443 2142 1553 2168 Explosive 466 | . . . . . . . . . 466 Electromagnetic 211 | . . 211 . . . . . . . Impact 262 | . . . . . . . . . 262 Slashing . | . . . . . . . . . . Piercing . | . . . . . . . . . . Highest Corruption 6 | . . . . . . . . 6 2 Average Corruption 3 | . . . . . . . . 5 1 Corruption Purged . | . . . . . . . . . . Corruption Blocked . | . . . . . . . . . . Effects 101 | . . . . . . . . 56 45 Message Errors 27 | . . . . . . . . 18 9 Matter Fused 30 | . . . . . . . . 18 12 Heat Flow Errors 9 | . . . . . . . . 4 5 Energy Discharges 2 | . . . . . . . . 2 . Parts Fused 1 | . . . . . . . . 1 . Data Loss (minor) 17 | . . . . . . . . 9 8 Data Loss (major) 6 | . . . . . . . . 2 4 Misfires 4 | . . . . . . . . 1 3 Alerts 3 | . . . . . . . . . 3 Weapon Failures 2 | . . . . . . . . 1 1 Overload Shots . | . . . . . . . . . . Overflow Damage 258 | . 2 . . . . 44 64 23 125 Projectiles 190 | . 2 . . . . 44 64 23 57 Explosions 3 | . . . . . . . . . 3 Melee 65 | . . . . . . . . . 65 Knockbacks 29 | . . . . . . . . . 29 Impact . | . . . . . . . . . . Kinetic 23 | . . . . . . . . . 23 Secondary 6 | . . . . . . . . . 6 Self-Inflicted Damage 25 | . . . . . . . . . 25 Shots 2 | . . . . . . . . . 2 Rammed . | . . . . . . . . . . Targets Rammed 5 | . 2 . . . . . 2 . 1 Kicked 5 | . 2 . . . . . 2 . 1 Crushed . | . . . . . . . . . . Highest Temperature 579 | 90 224 84 . 63 370 297 123 579 555 Average Temperature 98 | 37 56 29 . 34 89 48 28 115 143 Received Heat Transfer 2500 | . 243 21 . . 324 495 396 135 886 Effects 40 | . 2 . . . 2 . . 15 21 Shutdowns 16 | . . . . . . . . 6 10 Energy Bleed 3 | . . . . . . . . . 3 Interference 6 | . 2 . . . . . . 2 2 Matter Decay 2 | . . . . . 1 . . . 1 Short Circuit 4 | . . . . . . . . 1 3 Damage (minor) 3 | . . . . . 1 . . 1 1 Damage (major) 4 | . . . . . . . . 4 . Damage (core) 2 | . . . . . . . . 1 1 Siege Activations . | . . . . . . . . . . Robots Corrupted . | . . . . . . . . . . Combat Hostiles . | . . . . . . . . . . Parts Fried . | . . . . . . . . . . Impact Corruptions 6 | . . . . . . . . . 6 Robots Melted 7 | . . . . . . 2 3 . 2 Combat Hostiles 7 | . . . . . . 2 3 . 2 Parts Melted 43 | 1 8 . . . 13 4 6 2 9 Heat Transferred 21549 | 421 3621 740 . 222 4218 3186 3191 1951 3999 Parts Sabotaged . | . . . . . . . . . . Parts Stolen . | . . . . . . . . . . Parts Stripped . | . . . . . . . . . . Power Chain Reactions . | . . . . . . . . . . Missiles Intercepted . | . . . . . . . . . . Alert | -11 -10 -10 -10 -9 -8 -8 -8 -8 -7 ------- Run | Jun Mat Min Exi Min Mat Gar Mat Gar Fac Peak Influence 1500 | 10 307 129 . 57 179 1500 890 1476 768 Initial 671 | . 5 9 . . 13 92 630 205 671 Average 384 | 2 133 21 . 21 76 829 557 771 262 Maximum Alert Level 4 | . 1 . . . . 4 3 4 3 Low Security (%) 49 | 100 90 100 . 100 100 14 . . 58 Level 1 10 | . 9 . . . . 5 15 27 12 Level 2 19 | . . . . . . 7 56 25 27 Level 3 14 | . . . . . . 48 28 27 1 Level 4 5 | . . . . . . 23 . 19 . Level 5 . | . . . . . . . . . . High Security . | . . . . . . . . . . Max Security . | . . . . . . . . . . Squads Dispatched 44 | . 5 . . 1 3 . 9 . 26 Investigation 20 | . 5 . . 1 3 . 5 . 6 Extermination 8 | . . . . . . . . . 8 Reinforcement 12 | . . . . . . . 3 . 9 Assault 3 | . . . . . . . 1 . 2 Garrison 1 | . . . . . . . . . 1 Intercept . | . . . . . . . . . . Searches Triggered . | . . . . . . . . . . Construction Impeded 3 | . . . . . . . 1 . 2 Haulers Reinforced . | . . . . . . . . . . Active Scanning Responses . | . . . . . . . . . . Cargo Convoy Interrupts 1 | . . . . . . . . . 1 Stealth | -11 -10 -10 -10 -9 -8 -8 -8 -8 -7 --------- Run | Jun Mat Min Exi Min Mat Gar Mat Gar Fac Distress Signals 5 | . . . . . 2 . 2 . 1 Communications Jammed . | . . . . . . . . . . Distress Signals . | . . . . . . . . . . Times Spotted 261 | . 36 15 . 4 32 32 40 23 79 Peak Tracking Total 9 | . 9 5 . 2 7 6 8 3 9 Tactical Retreats 12 | . 2 . . . 2 4 2 1 1 Traps | -11 -10 -10 -10 -9 -8 -8 -8 -8 -7 ------- Run | Jun Mat Min Exi Min Mat Gar Mat Gar Fac Traps Triggered 14 | . 2 . . . 1 6 . 2 3 Indirectly . | . . . . . . . . . . Trap Hack Attempts . | . . . . . . . . . . Triggered . | . . . . . . . . . . Disarmed . | . . . . . . . . . . Reprogrammed . | . . . . . . . . . . Reused . | . . . . . . . . . . Traps Extracted . | . . . . . . . . . . Installed . | . . . . . . . . . . Triggered 6 | . . . . . . . . . 6 Machines | -11 -10 -10 -10 -9 -8 -8 -8 -8 -7 ---------- Run | Jun Mat Min Exi Min Mat Gar Mat Gar Fac Machines Disabled 33 | . . . . . . 5 4 10 14 Max in Single Turn 7 | . . . . . . 1 1 1 7 Garrison Relay 13 | . . . . . . 5 . 8 . Machines Repaired . | . . . . . . . . . . Machines Sabotaged . | . . . . . . . . . . Overloaded Fab Kills . | . . . . . . . . . . Hacking | -11 -10 -10 -10 -9 -8 -8 -8 -8 -7 --------- Run | Jun Mat Min Exi Min Mat Gar Mat Gar Fac Machines Accessed 56 | . 9 . 2 1 11 3 9 4 17 Terminals 32 | . 6 . . . 6 3 5 4 8 Fabricators 4 | . . . . . . . . . 4 Repair Stations 5 | . 1 . . . . . 1 . 3 Recycling Units 7 | . 2 . . . 2 . 1 . 2 Scanalyzers 3 | . . . . . 2 . 1 . . Garrison Access 2 | . . . . . 1 . 1 . . Total Hacks 178 | . 43 . 2 1 34 4 33 7 54 Successful 108 | . 30 . 2 1 23 2 18 2 30 Failed 69 | . 12 . . . 11 2 15 5 24 Catastrophic 6 | . 1 . . . 1 . . 1 3 Database Lockouts 1 | . 1 . . . . . . . . Manual 99 | . 34 . 1 . 23 . 23 . 18 Terminals 105 | . 32 . . . 21 4 22 7 19 Fabricators 11 | . . . . . . . . . 11 Repair Stations 25 | . 6 . . . . . 2 . 17 Recycling Units 22 | . 5 . . . 6 . 4 . 7 Scanalyzers 9 | . . . . . 6 . 3 . . Garrison Access 3 | . . . . . 1 . 2 . . Terminal Hacks 29 | . 11 . 2 1 5 2 3 2 3 Record 1 | . . . 1 . . . . . . Prototype ID Bank 5 | . 5 . . . . . . . . Open Door 3 | . . . . 1 . 1 . 1 . Open DSF 1 | . . . . . . . . . 1 Branch Access Points 2 | . 1 . . . . . . . 1 Emergency Access Points 2 | . . . . . . 1 . 1 . Terminal Index 4 | . 1 . . . 1 . 1 . 1 Repair Station Index 1 | . 1 . . . . . . . . Recycling Unit Index 1 | . 1 . . . . . . . . Garrison Index 1 | . . . . . . . 1 . . Alert Level 1 | . 1 . . . . . . . . Unreport Threat 2 | . . . . . 1 . 1 . . Locate Traps 1 | . . . . . 1 . . . . Registered Components 2 | . 1 . . . 1 . . . . Registered Prototypes 1 | . . . . . 1 . . . . EX-Prototype ID Bank 1 | . . . 1 . . . . . . Fabricator Hacks 4 | . . . . . . . . . 4 Load Schematic 2 | . . . . . . . . . 2 Build 2 | . . . . . . . . . 2 Repair Station Hacks 21 | . 6 . . . . . 2 . 13 Scan Component 11 | . 3 . . . . . 1 . 7 Repair 10 | . 3 . . . . . 1 . 6 Recycling Unit Hacks 6 | . 2 . . . 2 . . . 2 Retrieve Components 6 | . 2 . . . 2 . . . 2 Scanalyzer 6 | . . . . . 4 . 2 . . Insert Component 3 | . . . . . 2 . 1 . . Analyze 3 | . . . . . 2 . 1 . . Garrison Access Hacks 3 | . . . . . 1 . 2 . . Unlock Access 2 | . . . . . 1 . 1 . . Coupler Status 1 | . . . . . . . 1 . . Unauthorized Hacks 39 | . 11 . . . 11 . 9 . 8 Terminals 30 | . 9 . . . 8 . 8 . 5 Assimilate 4 | . . . . . 3 . 1 . . Botnet 20 | . 6 . . . 4 . 5 . 5 Operators 2 | . . . . . 1 . 1 . . Search 4 | . 3 . . . . . 1 . . Fabricators 1 | . . . . . . . . . 1 Download 1 | . . . . . . . . . 1 Repair Stations . | . . . . . . . . . . Recycling Units 6 | . 2 . . . 2 . . . 2 Reject 5 | . 1 . . . 2 . . . 2 Tunnel 1 | . 1 . . . . . . . . Scanalyzers 2 | . . . . . 1 . 1 . . Extract 2 | . . . . . 1 . 1 . . Garrison Access . | . . . . . . . . . . Data Cores Recovered . | . . . . . . . . . . Used . | . . . . . . . . . . Hacking Detections 44 | . 7 . . . 9 2 7 3 16 Full Trace Events 12 | . . . . . 2 . 3 2 5 Feedback Events . | . . . . . . . . . . Feedback Blocked . | . . . . . . . . . . Robot Schematics Acquired . | . . . . . . . . . . Robots Built . | . . . . . . . . . . Authchips . | . . . . . . . . . . Time . | . . . . . . . . . . Total Robot Build Rating . | . . . . . . . . . . Part Schematics Acquired 13 | . . . . . 8 . 5 . . Parts Built 2 | . . . . . . . . . 2 Authchips . | . . . . . . . . . . Time 135 | . . . . . . . . . 135 Total Part Build Rating 6 | . . . . . . . . . 6 Parts Repaired 10 | . 3 . . . . . 1 . 6 Time 353 | . 78 . . . . . 70 . 205 Parts Recycled . | . . . . . . . . . . Recycled Matter . | . . . . . . . . . . Retrieved Matter . | . . . . . . . . . . Retrieved Components 33 | . 11 . . . 12 . . . 10 Parts Scanalyzed 3 | . . . . . 2 . 1 . . Part Schematics Acquired 2 | . . . . . 1 . 1 . . Parts Damaged . | . . . . . . . . . . Bothacking | -11 -10 -10 -10 -9 -8 -8 -8 -8 -7 ------------ Run | Jun Mat Min Exi Min Mat Gar Mat Gar Fac Used RIF Installer 3 | . . . . . . 1 . 2 . Threat Obfuscator 1 | . . . . . . . . 1 . Zone Cloak 1 | . . . . . . . . 1 . Robots Hacked 23 | . . . . . . 9 3 4 7 Non-combat . | . . . . . . . . . . Combat 23 | . . . . . . 9 3 4 7 Robot Hacks Applied 25 | . . . . . . 11 3 4 7 spike_heat 1 | . . . . . . 1 . . . overload_power 2 | . . . . . . 2 . . . amplify_resonance 1 | . . . . . . 1 . . . go_dormant 1 | . . . . . . . . . 1 formatsys_high 20 | . . . . . . 7 3 4 6 Relay Couplers Released 52 | . . . . . . 21 . 31 . Machine Destruction 52 | . . . . . . 21 . 31 . Attached 11 | . . . . . . 4 2 3 2 Fabnet Peak Effective % . | . . . . . . . . . . Robots Rewired 12 | . . . . . . 3 . 9 . Allies Hacked . | . . . . . . . . . . Hacks Repelled . | . . . . . . . . . . Allies | -11 -10 -10 -10 -9 -8 -8 -8 -8 -7 -------- Run | Jun Mat Min Exi Min Mat Gar Mat Gar Fac Total Allies 41 | . . 3 . . 2 10 4 13 9 Largest Group 9 | . . 3 3 3 1 8 9 4 4 Highest-Rated Group 177 | . . 40 40 40 10 162 177 124 122 Highest-Rated Ally 40 | . . 16 16 16 10 31 31 40 40 Total Orders 10 | . . . . . 3 . 5 2 . STAY 5 | . . . . . 2 . 2 1 . FOLLOW 5 | . . . . . 1 . 3 1 . Ally Attacks 294 | . . 11 . 9 . 49 73 94 58 Total Damage 4213 | . . 57 . 95 . 629 1033 1476 923 Kills 46 | . . 3 . 2 . 7 14 16 4 Allies Corrupted 2 | . . . . . . . 2 . . Allies Melted . | . . . . . . . . . . Intel | -11 -10 -10 -10 -9 -8 -8 -8 -8 -7 ------- Run | Jun Mat Min Exi Min Mat Gar Mat Gar Fac Robot Analysis Total . | . . . . . . . . . . Derelict Logs Recovered 4 | . . 3 . 1 . . . . . Drone Launches . | . . . . . . . . . . Drone Recoveries . | . . . . . . . . . . Exploration | -11 -10 -10 -10 -9 -8 -8 -8 -8 -7 ------------- Run | Jun Mat Min Exi Min Mat Gar Mat Gar Fac Turns Passed 17951 | 150 1833 1219 572 305 2529 2345 2657 2195 4146 Spaces Moved 9889 | 93 840 820 469 193 1344 1853 1138 1207 1932 Core 3 | 3 . . . . . . . . . Treads . | . . . . . . . . . . Legs 6792 | 90 840 820 469 193 . 103 1138 1207 1932 Wheels . | . . . . . . . . . . Hover 778 | . . . . . . 778 . . . Flight 2316 | . . . . . 1344 972 . . . Fastest Speed 43 | 50 120 120 120 120 50 43 120 112 110 Average Speed 100 | 117 120 120 120 120 50 66 121 119 118 Slowest Speed 260 | 120 120 120 120 120 50 260 122 122 260 Overloaded Moves . | . . . . . . . . . . Propulsion Burnouts . | . . . . . . . . . . Robots Hopped 5 | . . . . . 5 . . . . Cave-ins Triggered . | . . . . . . . . . . Exploration Rate (%) 66 | 4 86 100 65 37 76 96 51 98 47 Regions Visited 9 Branch Regions 3 Pre-discovered Areas 2 | . 1 1 . . . . . . . Known Exits Taken 3 | . 1 . . . 1 . 1 . . Unknown Exits Taken 4 | 1 . 1 1 1 . . . . . Scrap Searched 2 | . . 1 . 1 . . . . . Spaces Dug 46 | . . . . . 23 . 21 . 2 Terrain Destroyed 176 | . . . . . 39 . 42 . 95 Melee . | . . . . . . . . . . Projectile 99 | . . . . . 39 . 42 . 18 AOE 77 | . . . . . . . . . 77 Terrain Rammed . | . . . . . . . . . . Walls Destroyed . | . . . . . . . . . . Machines Disabled . | . . . . . . . . . . Actions | -11 -10 -10 -10 -9 -8 -8 -8 -8 -7 --------- Run | Jun Mat Min Exi Min Mat Gar Mat Gar Fac Total 16936 | 121 1553 1017 480 263 3062 2789 2281 1843 3527 Wait 5921 | 5 603 158 7 60 1613 684 1031 441 1319 Move 9868 | 92 839 819 468 192 1333 1851 1137 1205 1932 Hop 5 | . . . . . 5 . . . . Pick Up 126 | 12 16 3 1 3 12 19 8 13 39 Fast Attach 29 | . 2 . . . 5 5 2 3 12 Attach 42 | 6 3 . . . 3 6 3 3 18 Detach 2 | . 1 . . . . 1 . . . Swap 145 | . 11 11 . 1 10 18 18 30 46 Drop 140 | . 17 7 4 4 19 21 12 24 32 Fire 538 | 6 59 19 . 3 62 123 68 80 118 Melee 6 | . . . . . . . . . 6 Ram . | . . . . . . . . . . Kick 5 | . 2 . . . . . 2 . 1 Crush . | . . . . . . . . . . Escape Stasis 55 | . . . . . . 52 . 3 . Rewire 54 | . . . . . . 9 . 41 4 Trap . | . . . . . . . . . . Miscellaneous . | . . . . . . . . . . Route ------- -11/Junkyard -10/Materials (discovered 4 exits: *Mat x3 / *Min) -10/Mines (discovered 3 exits: *Mat x2 / *Exi) -10/Exiles (discovered 2 exits: *Min x2) -9/Mines -8/Materials (discovered 4 exits: *Fac x3 / Gar) -8/Garrison (discovered 3 exits: *Mat x3) -8/Materials (discovered 2 exits: *Fac / Gar) -8/Garrison (discovered 3 exits: *Fac x3) -7/Factory (discovered 4 exits: [*Fac] / Sto / *Low x2) History --------- Turn | Location | Event 9 | -11/Junkyard | Discovered new exit (range 15) 151 | -11/Junkyard | Entered Materials 304 | -10/Materials | Build established: Mutant 316 | -10/Materials | Repaired Aluminum Leg 344 | -10/Materials | Repaired Ion Engine 384 | -10/Materials | Repaired Aluminum Leg 632 | -10/Materials | Discovered new exit (range 15) 1335 | -10/Materials | Discovered new exit (range 7) 1353 | -10/Materials | Identified exit to Mines 1353 | -10/Materials | Central database locked down 1639 | -10/Materials | Discovered new exit (range 15) 1742 | -10/Materials | Build established: Scavenger-Mutant 1984 | -10/Materials | Entered Mines 1985 | -10/Mines | Assembled infested the area 1990 | -10/Mines | Assisted by a Guerilla fighting off Assembled 2046 | -10/Mines | Met a Derelict bent on vengeance 2124 | -10/Mines | Core integrity fell below 50% 2376 | -10/Mines | Found a damaged Exp. Sensor Array with a note attached 2379 | -10/Mines | Found Prototype Device 2386 | -10/Mines | Identified Exp. Sensor Array 2460 | -10/Mines | Learned 8 Materials zone layouts 2487 | -10/Mines | Deemed a non-threat by the Exiles lab entrance 2487 | -10/Mines | Discovered new exit (range 5) 2515 | -10/Mines | Learned Materials terminal intel 2536 | -10/Mines | Received a Rocket Launcher from a helpful Derelict 2566 | -10/Mines | Discovered new exit (range 5) 2644 | -10/Mines | Assisted by bots powering up and referring to "LRC-V3" 2695 | -10/Mines | Identified exit to Materials 2760 | -10/Mines | Learned location of Storage (-7) 3203 | -10/Mines | Entered Exiles 3203 | -10/Exiles | Accompanied by 3 allies 3237 | -10/Exiles | Met 8R-AWN 3255 | -10/Exiles | Met EX-HEX 3289 | -10/Exiles | Met EX-BIN 3302 | -10/Exiles | Aligned with FarCom system 3303 | -10/Exiles | Given EX-Vault access code 3332 | -10/Exiles | Opened EX-Vault 3341 | -10/Exiles | Found Flying Fortress v7 3386 | -10/Exiles | Warned to stay clear of 0b10 Research branches 3430 | -10/Exiles | Met EX-DEC 3482 | -10/Exiles | Discovered new exit (range 14) 3619 | -10/Exiles | Discovered new exit (range 14) 3775 | -10/Exiles | Left Exiles lab with Flying Fortress v7 3775 | -10/Exiles | Entered Mines 3775 | -9/Mines | Accompanied by 3 allies 3780 | -9/Mines | Met a Derelict shopkeep closing up shop 3881 | -9/Mines | Learned Materials interactive machine intel 3899 | -9/Mines | Discovered new exit (range 12) 4080 | -9/Mines | Entered Materials 4080 | -8/Materials | Evolved 4 slots: Power x1, Propulsion x2, Weapon x1 4081 | -8/Materials | Identified exit to Factory 4082 | -8/Materials | Loaded intel: 16 interactive machine locations 4083 | -8/Materials | Loaded intel: 9 terminal locations 4380 | -8/Materials | Build established: Skirmisher 5168 | -8/Materials | Identified exit to Garrison 6448 | -8/Materials | Discovered exit to Factory (range 4) 6609 | -8/Materials | Entered Garrison 6636 | -8/Garrison | Triggered checkpoint 6653 | -8/Garrison | Garrison Relay disabled 6748 | -8/Garrison | Triggered checkpoint 6990 | -8/Garrison | Spotted B-75 Beast 7043 | -8/Garrison | Garrison Relay disabled 7096 | -8/Garrison | Discovered new exit (range 13) 7128 | -8/Garrison | Triggered checkpoint 7263 | -8/Garrison | Garrison Relay disabled 7279 | -8/Garrison | Installed Relay Interface Framework 7688 | -8/Garrison | Allies destroyed B-75 Beast 8012 | -8/Garrison | Triggered checkpoint 8092 | -8/Garrison | Discovered new exit (range 10) 8188 | -8/Garrison | Triggered checkpoint 8260 | -8/Garrison | Garrison Relay disabled 8568 | -8/Garrison | Discovered new exit (range 9) 8598 | -8/Garrison | Triggered checkpoint 8618 | -8/Garrison | Garrison Relay disabled 8954 | -8/Garrison | Entered Materials 8954 | -8/Materials | Accompanied by 7 allies 9140 | -8/Materials | Repaired Cld. Particle Cannon 9351 | -8/Materials | Build established: Scavenger-Mutant 9684 | -8/Materials | Discovered exit to Factory (range 3) 9754 | -8/Materials | First assault squad dispatched 10090 | -8/Materials | Build established: Scavenger-Skirmisher 10466 | -8/Materials | Build established: Scavenger-Mutant 10717 | -8/Materials | Destroyed 7 combat bots 11246 | -8/Materials | Build established: Scavenger-Skirmisher 11607 | -8/Materials | Identified exit to Garrison 11611 | -8/Materials | Entered Garrison 11663 | -8/Garrison | Core integrity fell below 50% 11744 | -8/Garrison | Triggered checkpoint 11814 | -8/Garrison | Garrison Relay disabled 12112 | -8/Garrison | Build established: Scavenger-Mutant 12360 | -8/Garrison | Triggered checkpoint 12478 | -8/Garrison | Triggered checkpoint 12710 | -8/Garrison | Discovered exit to Factory (range 11) 12756 | -8/Garrison | Triggered checkpoint 12810 | -8/Garrison | Garrison Relay disabled 13007 | -8/Garrison | Discovered exit to Factory (range 5) 13032 | -8/Garrison | Expanded RIF knowledge: Threat Obfuscation 13070 | -8/Garrison | Triggered checkpoint 13094 | -8/Garrison | Expanded RIF knowledge: Zone Cloak 13104 | -8/Garrison | Garrison Relay disabled 13280 | -8/Garrison | Discovered exit to Factory (range 14) 13374 | -8/Garrison | Garrison Relay disabled 13403 | -8/Garrison | Garrison Relay disabled 13408 | -8/Garrison | Garrison Relay disabled 13432 | -8/Garrison | Core integrity fell below 20% 13530 | -8/Garrison | Triggered checkpoint 13554 | -8/Garrison | Garrison Relay disabled 13806 | -8/Garrison | Entered Factory 13806 | -7/Factory | Accompanied by 4 allies 13806 | -7/Factory | Evolved 2 slots: Utility x1, Weapon x1 13976 | -7/Factory | Build established: Scavenger-Skirmisher 14206 | -7/Factory | First assault squad dispatched 14430 | -7/Factory | Cargo convoy interrupted 14538 | -7/Factory | P-60 Hacker assimilated allied Trooper 4a 15198 | -7/Factory | Core integrity fell below 50% 15660 | -7/Factory | Fabricated Carbon-fiber Leg (x2) 15887 | -7/Factory | Repaired Imp. Carbon-fiber Leg 16025 | -7/Factory | Repaired Imp. Shield Generator 16065 | -7/Factory | Repaired Carbon-fiber Leg 16110 | -7/Factory | Repaired Imp. Deuterium Engine 16178 | -7/Factory | Repaired VSS Leg 16221 | -7/Factory | Repaired Carbon-fiber Leg 16257 | -7/Factory | Build established: Hacker-Skirmisher 16456 | -7/Factory | Lost 4 parts (1n1u2w) 16596 | -7/Factory | Discovered new exit (range 15) 16657 | -7/Factory | Identified exit to Storage 16657 | -7/Factory | Identified exit to Lower Caves 16846 | -7/Factory | Garrison activated, responded to threat 16926 | -7/Factory | Build established: Scavenger-Skirmisher 17170 | -7/Factory | Core integrity fell below 20% 17953 | -7/Factory | Core destroyed Last Messages --------------- 17945_ R-06 Scavenger collects Particle Gun. 17947_ R-06 Scavenger collects Aluminum Leg. 17949_ G-47 Trooper destroyed. 17949_ R-06 Scavenger destroyed. 17949_ Slug penetrates R-06 Scavenger. 17949_ Destroyed Com. Wheel. 17950_ R-06 Scavenger collects Aluminum Leg. 17951_ System corrupted: Heat flow error (+128). 17951_ U-05 Engineer lays Concrete. 17952_ Power failure, Imp. Deuterium Engine shutdown. 17952_ G-47 Trooper destroyed. 17952_ U-05 Engineer destroyed. 17952_ G-47 Trooper destroyed. 17952_ Corrupted Terrain Scanner tumbles out of recycling unit. 17952_ VSS Leg destroyed. 17952_ Destroyed VSS Leg. 17952_ ALERT: Construction progress impeded, dispatching reinforcements to local area. 17953_ Power failure, Imp. Deuterium Engine shutdown. 17953_ Overheating: Core damaged (-84). Map ----- +----------------------------------------------------+ | ?????????????# """" """" #???????????# ## | | ?????????????# """" """" #??????????## ## | | ?????????????# #??????????# # """ | | ?????????????######+#####+############ ! # | | ????????????###### T # """ | | ????????????+ "" +*[ | | ????????????###### * #!""" | | ?????????????????# ################= # | | ?????????????????# ^ #??????????????# # """ | | ??????############ #??????????????### ### | | ????? #????????????????# #?# """ | | ?????????#### ! #??????????????? + #?# | | ????????????# #?????????????? # #?##### | | ????????????#% #?"" ????????? # #?????? | | ????????????# "" #"""????????? ?# ?????? | | ?????######## % T" #""?????????? ??# ????? | | ?????# / " + ??????????????# ????? | | ?????# """" # % #"" ?????????????# ### ???? | | ?????# "F # %% #"" ????????????# #??????? | | ?????# +%#### ##?"" ??????????? ???????? | | ?????# ! %# ##?# #????????????????? ???????? | | ?????#! %!#%#?## ##???????????????? ?????????? | | ?????######## #?#; =%## ?????????????????????????? | | ????????????# #??# %! ###??????????????????????? | | ????????????# #?## !g!* #??????????????????????? | | ????????????# ##; *%g%[ @#??????????????????????? | | ????????????# #?# " !r== [#??????????????????????? | | ????????????? ??# "" = #??????????????????????? | | ????????????? ??# ! #??????????????????????? | | ????????????? ??######r####??????????????????????? | | ????????????? ???????r ??????????????????????????? | | ?????????????T??????r ???????????????????????????? | | ????????????? ????? ???????????????????????????? | | #?????????????????###????????????????????????????? | | ###??????????????????????????????????????????????? | | [#??????????????????????????????????????????????? | | ##?????????????????????????????????????????????? | | #?????????????????????????????????????????????? | | #?????????????????????????????????????????????? | | #?????????????????????????????????????????????? | | #?????????????????????????????????????????????? | | #?????????????????????????????????????????????? | | ##?????????????????????????????????????????????? | | #??????????????????????????????????????????????? | | ###??????????????????????????????????????????????? | | ?????????????????????????????????????????????????? | | ?????>???????????????????????????????????????????? | | ?????????????????????????????????????????????????? | | ?????????????????????????????????????????????????? | | ?????????????????????????????????????????????????? | +----------------------------------------------------+ Best States ------------- Heat Dissipation 58 Energy Generation 29 Energy Capacity 500 Matter Stores 300 Matter Capacity 300 Sight Range 16 Terrain Scan Density 10 Armor Coverage 225 Resistance: KI 50 Resistance: TH 20 Resistance: EX 20 Resistance: EM 20 Resistance: I 20 Resistance: S 20 Resistance: P 20 Evasion (%) 60 Recoil Reduction 4 Offensive Hacking 10 Defensive Hacking 10 Relay Coupler Types 1 Relay Coupler Value 51 Authchip Count 1 Item Schematics ----------------- Imp. Cooling System | -8/Materials | Scanalyzed Med. Armor Plating | -8/Materials | Extracted Hvy. EM Pulse Gun | -8/Materials | Extracted EMP Blaster | -8/Materials | Extracted System Shield | -8/Materials | Extracted Assault Cannon | -8/Materials | Extracted Hrd. Medium Armor Plating | -8/Materials | Extracted Adv. Visual Processing Unit | -8/Materials | Extracted Carbon-fiber Leg | -8/Materials | Scanalyzed Hvy. Particle Cannon | -8/Materials | Extracted Mni. Grenade Launcher | -8/Materials | Extracted Hvy. Particle Gun | -8/Materials | Extracted Imp. Datajack | -8/Materials | Extracted Robot Schematics ------------------ None Fabricated ------------ Carbon-fiber Leg | x2 | -7/Factory Alien Tech Used ----------------- None Achievements -------------- None Challenges ------------ None Game ------ Seed LinearPotentialMegatreads Manual? 0 Play Time 02:41:12 Cumulative 52.3 hours Start 2023.09.10 @ 03:31:26 End 2023.09.10 @ 06:21:50 Sessions 1 Manual Loads 0 Difficulty Adventurer Special Mode None Game No. 24 Rogue 0 Adventurer 24 Explorer 0 Win Type - Total 0 Types 0/0/0/0/0/0/0/0/0 Lore% 15 Gallery% 30 Achievement% 28 Wizard Run 0 Options --------- ASCII 0 Keyboard 0 Movement Mouse Keybinds 0 Fullscreen 1 Font 18/SmallcapsGlow Map View 76x50 Tactical HUD 1 Map Filters NONE Filters NONE Steam 1 RUN: c2a3048e-a17c-4409-9622-995a5687f2b9